Cogmind - Beta 14 @@@ ROGUE MODE // 2024.10.15 @ 21:26:15 Player: Delilah Keen Result: Destroyed by G-47 Trooper with Particle Gun Performance ------------- Evolutions (2) 1000 Regions Visited (6) 1200 Robots Destroyed (88) 440 Value Destroyed (2107) 2107 Prototype IDs (11) 220 Alien Tech Used (0) 0 Bonus (181) 181 TOTAL SCORE: 5148 Bonus ------- High Alert Combat Kills 46 Aligned with FarCom 300 Friendly Fire -165 Cogmind --------- Core Integrity 0/550 Matter 220/300 Energy 261/265 System Corruption 4% Temperature Cool (9) Movement Rolling (115) Ox1 Location -8/Storage Parts ------- > --- POWER (1) -------- Improved Ion Engine > --- PROPULSION (3) --- Armored Huge Wheel > --- UTILITY (4) ------ Large Storage Unit Improved Signal Interpreter Trap Extractor (0/4) Drone Bay (2/2) > --- WEAPON (3) ------- Heavy Assault Rifle Heavy Assault Rifle Improved Assault Rifle > --- INVENTORY (15) --- Ion Engine Armored Huge Wheel Armored Huge Wheel Cryofiber Web Large Storage Unit Machine Analyzer Experimental Sensor Array Improved Light Armor Plating Component Analysis Suite Particle Gun Pulse Rifle Pulse Rifle Hammer Peak State ------------ > --- POWER ------------ Improved Deuterium Engine > --- PROPULSION ------- Carbon-fiber Leg Carbon-fiber Leg Improved Carbon-fiber Leg > --- UTILITY ---------- Improved Heat Sink Medium Storage Unit Improved Signal Interpreter Layered Light Armor Plating > --- WEAPON ----------- Improved EM Shotgun Lightning Gun Guided Plasma Cannon > --- INVENTORY -------- Light Deuterium Engine Aluminum Leg Aluminum Leg Aluminum Leg Experimental Sensor Array Improved Light Armor Plating Component Analysis Suite Lightning Gun Lightning Gun Beamcaster [Rating: 43] Favorites ----------- Power Light Nuclear Core Engine Improved Deuterium Engine Power Core Light Nuclear Core Propulsion Aluminum Leg Leg Aluminum Leg Wheel Armored Huge Wheel Utility Medium Storage Unit Device Improved Heat Sink Storage Medium Storage Unit Processor Signal Interpreter Protection Layered Light Armor Plating Weapon Guided Plasma Cannon Energy Gun Lightning Gun Energy Cannon Guided Plasma Cannon Ballistic Gun Improved Assault Rifle Ballistic Cannon Light Cannon Launcher Rocket Launcher Impact Weapon Mace Build | -11 -10 -10 -10 -9 -8 -8 ------- Run | Yrd Mat Min Exi Min Mat Sto Slots Evolved 4 | . . . . . 4 . Power . | . . . . . . . Propulsion 1 | . . . . . 1 . Utility 2 | . . . . . 2 . Weapon 1 | . . . . . 1 . Parts Attached 92 | 6 7 14 2 7 39 17 Power 14 | 1 1 3 . 2 4 3 Engine 7 | 1 . 1 . 1 2 2 Core 7 | . 1 2 . 1 2 1 Reactor . | . . . . . . . Propulsion 17 | 2 1 4 . 1 9 . Treads . | . . . . . . . Leg 15 | 2 1 4 . 1 7 . Wheel 2 | . . . . . 2 . Hover . | . . . . . . . Flight . | . . . . . . . Utility 30 | 1 2 . . 3 16 8 Device 19 | . . . . 2 9 8 Storage 4 | 1 1 . . 1 1 . Processor 2 | . 1 . . . 1 . Hackware . | . . . . . . . Protection 5 | . . . . . 5 . Artifact . | . . . . . . . Weapon 31 | 2 3 7 2 1 10 6 Energy Gun 17 | 1 1 6 1 . 8 . Energy Cannon 3 | . . . 1 . 1 1 Ballistic Gun 8 | 1 1 . . 1 1 4 Ballistic Cannon 1 | . 1 . . . . . Launcher 1 | . . 1 . . . . Special Weapon . | . . . . . . . Impact Weapon 1 | . . . . . . 1 Slashing Weapon . | . . . . . . . Piercing Weapon . | . . . . . . . Special Melee Weapon . | . . . . . . . Unidentified Prototypes 1 | . . . 1 . . . Parts Lost 30 | . 2 6 . . 16 6 Power 5 | . 1 . . . 2 2 Propulsion 7 | . . 3 . . 4 . Utility 5 | . . . . . 3 2 Weapon 13 | . 1 3 . . 7 2 Highest Loss Streak 7 | . 1 3 . . 7 4 To Critical Strikes . | . . . . . . . Average Slot Usage (%) 87 | . 84 89 99 99 89 66 Engine 3 | . 1 . . 3 6 1 Core 5 | . 8 7 14 10 2 1 Leg 19 | . 28 24 28 28 20 . Wheel 2 | . . . . . 1 9 Device 6 | . . . . . 10 11 Storage 11 | . 14 14 14 12 9 9 Processor 10 | . 3 14 14 14 9 9 Protection 2 | . . . . . 6 . Energy Gun 11 | . 14 18 9 . 14 1 Energy Cannon 4 | . . . 9 14 4 2 Ballistic Gun 5 | . 5 4 . 13 2 16 Launcher 1 | . . 4 8 . . . Peak Build Rating 43 | 6 10 12 19 25 43 32 Average Rating 24 | 5 8 10 16 20 36 27 On Entrance 14 | . 6 8 12 19 24 32 Naked Turns . | . . . . . . . Heaviest Build 44 | 14 21 21 29 33 42 44 Greatest Support 48 | 20 20 20 20 28 48 28 Greatest Overweight (x) 5 | 1 1 5 1 1 3 1 Average Overweight (x) . | . . . . . . . Largest Inventory Capacity 15 | 8 10 10 10 10 15 15 Average Capacity 10 | 7 9 10 10 9 10 15 Most Carried 15 | 4 10 10 10 10 12 15 Average Carried 9 | 2 8 9 9 9 9 12 Final Capacity 15 | 8 10 10 10 10 15 15 Final Carried 15 | 4 8 10 9 10 12 15 Class Distribution -------------------- 46% | Mutant 27% | Scavenger-Mutant 24% | Skirmisher Dominant Class ---------------- Mutant | -10/Materials Scavenger-Mutant | -10/Mines Scavenger-Mutant | -10/Exiles Scavenger-Mutant | -9/Mines Skirmisher | -8/Materials Mutant | -8/Storage Resources | -11 -10 -10 -10 -9 -8 -8 ----------- Run | Yrd Mat Min Exi Min Mat Sto Matter Collected 1513 | 241 149 271 . 71 492 289 Remotely . | . . . . . . . Salvage Created 3625 | . 233 644 . 53 2043 652 Parts 189 | . 21 35 . 5 91 37 Haulers Intercepted 3 | . . . . . 1 2 Recyclers Shooed 7 | . 1 . . . 5 1 Parts Field Recycled . | . . . . . . . Retrieved Matter . | . . . . . . . Parts Self-Destructed . | . . . . . . . Prevented . | . . . . . . . Kills | -11 -10 -10 -10 -9 -8 -8 ------- Run | Yrd Mat Min Exi Min Mat Sto Combat Hostiles Destroyed 60 | . 9 15 . 3 26 7 Melee 2 | . . . . . . 2 Guns 45 | . 6 14 . 1 21 3 Cannons 9 | . 3 . . 2 3 1 Classes Destroyed 12 | . 3 1 . 1 6 1 Worker 4 | . . . . . 2 2 Builder 3 | . . . . . 2 1 Tunneler 1 | . . . . 1 . . Hauler 3 | . . . . . 1 2 Recycler 10 | . . 3 . . 6 1 Operator 2 | . . . . . 2 . Watcher 4 | . 1 . . . 3 . Swarmer 24 | . 6 9 . 3 6 . Grunt 21 | . 3 6 . . 12 . Duelist 1 | . . . . . 1 . Sentry 12 | . . . . . 7 5 Hunter 2 | . . . . . . 2 Thug 1 | . . . . . 1 . Best Kill Streak 8 | . 7 4 . 3 8 3 Combat Bots Only 7 | . 7 4 . 3 6 1 Max Kills in Single Turn 2 | . 1 2 . 1 2 2 Gunslinging 1 | . . 1 . . . . Exploded . | . . . . . . . Melee 1 | . . . . . . 1 Uniques/NPCs Destroyed . | . . . . . . . Combat | -11 -10 -10 -10 -9 -8 -8 -------- Run | Yrd Mat Min Exi Min Mat Sto Hostile Shots Fired 373 | . 47 91 . 1 164 70 Missed 99 | . 15 28 . 1 43 12 Damage Taken 4037 | . 277 696 . 24 2127 913 Core 684 | . 29 93 . 12 304 246 Absorbed by Shields . | . . . . . . . Core Remaining (%) 73 | 100 . . . 46 . . Volleys Fired 265 | . 34 56 . 15 125 35 Largest 3 | . 2 2 . 1 3 3 Hottest 165 | . 91 112 . 120 165 86 Shots Fired 438 | . 55 102 . 16 189 76 Gun 358 | . 43 102 . 3 143 67 Cannon 80 | . 12 . . 13 46 9 Launcher . | . . . . . . . Special . | . . . . . . . Kinetic 132 | . 31 36 . 3 3 59 Thermal 184 | . 18 58 . 13 95 . Explosive . | . . . . . . . Electromagnetic 122 | . 6 8 . . 91 17 Robot Hit Streak 9 | . 7 8 . 2 9 8 Robot Miss Streak 5 | . 3 5 . 1 3 3 Penetration Max . | . . . . . . . Secondary Targets 3 | . . 2 . . 1 . Max Gunslinging Chain 1 | . . 1 . . 1 . Shots Hit Robots 262 | . 29 63 . 1 111 58 Core Hits 121 | . 12 27 . 4 57 21 Critical Kills . | . . . . . . . Critical Parts Destroyed 3 | . . 1 . . . 2 Critical Strikes 10 | . . 3 . . 5 2 Burn 7 | . . 2 . . 5 . Destroy 1 | . . 1 . . . . Smash 2 | . . . . . . 2 Melee Attacks 12 | . . . . . . 12 Impact 12 | . . . . . . 12 Slashing . | . . . . . . . Piercing . | . . . . . . . Sneak Attacks 2 | . . . . . . 2 Combat Hostiles . | . . . . . . . Follow-up Attacks . | . . . . . . . Damage Inflicted 5841 | . 406 890 . 146 3297 1102 Guns 3978 | . 316 877 . 9 2100 676 Cannons 1443 | . 89 . . 137 1097 120 Explosions 121 | . . . . . 74 47 Melee 259 | . . . . . . 259 Ramming 40 | . 1 13 . . 26 . Kinetic 1093 | . 234 224 . 9 29 597 Thermal 2902 | . 116 611 . 137 1991 47 Explosive . | . . . . . . . Electromagnetic 1547 | . 55 42 . . 1251 199 Impact 259 | . . . . . . 259 Slashing . | . . . . . . . Piercing . | . . . . . . . Highest Corruption 4 | . 2 2 2 2 4 4 Average Corruption 3 | . 2 2 2 2 4 4 Corruption Purged . | . . . . . . . Corruption Blocked . | . . . . . . . Effects 96 | . . 9 6 12 39 30 Message Errors 27 | . . 3 2 2 13 7 Matter Fused 27 | . . 2 3 3 13 6 Heat Flow Errors 15 | . . 1 1 3 4 6 Energy Discharges 7 | . . . . 2 2 3 Parts Fused 2 | . . . . . . 2 Data Loss (minor) 6 | . . 1 . . 4 1 Data Loss (major) 3 | . . 1 . 1 . 1 Misfires 6 | . . . . 1 2 3 Alerts 2 | . . 1 . . . 1 Weapon Failures 1 | . . . . . 1 . Overload Shots . | . . . . . . . Overflow Damage 126 | . . . . . 67 59 Projectiles 67 | . . . . . 67 . Explosions . | . . . . . . . Melee 59 | . . . . . . 59 Knockbacks 1 | . 1 . . . . . Impact . | . . . . . . . Kinetic 1 | . 1 . . . . . Secondary . | . . . . . . . Self-Inflicted Damage 47 | . . 2 . . 36 9 Shots 2 | . . . . . 1 1 Rammed 1 | . . 1 . . . . Targets Rammed 8 | . 1 5 . . 2 . Kicked 7 | . 1 4 . . 2 . Crushed . | . . . . . . . Highest Temperature 348 | . 272 171 88 348 330 245 Average Temperature 97 | . 103 33 45 148 108 67 Received Heat Transfer 1374 | . 72 258 . . 927 117 Effects 7 | . 1 . . 1 5 . Energy Bleed 4 | . . . . 1 3 . Interference 3 | . 1 . . . 2 . Siege Activations . | . . . . . . . Robots Corrupted 4 | . . . . . 2 2 Combat Hostiles 2 | . . . . . 1 1 Parts Fried 11 | . . . . . 6 5 Impact Corruptions 3 | . . . . . . 3 Robots Melted 2 | . . 1 . . 1 . Combat Hostiles 2 | . . 1 . . 1 . Parts Melted 15 | . . 3 . . 12 . Heat Transferred 6924 | . 296 1702 . 320 4456 150 Parts Sabotaged . | . . . . . . . Parts Stolen . | . . . . . . . Parts Stripped . | . . . . . . . Power Chain Reactions 2 | . . . . . 1 1 Alert | -11 -10 -10 -10 -9 -8 -8 ------- Run | Yrd Mat Min Exi Min Mat Sto Peak Influence 465 | . 206 222 . 83 465 362 Initial 196 | . . 22 . . . 196 Average 138 | . 53 73 . 33 196 170 Maximum Alert Level 2 | . 1 1 . . 2 1 Low Security (%) 71 | 100 98 91 . 100 52 69 Level 1 19 | . 1 8 . . 28 30 Level 2 8 | . . . . . 18 . Level 3 . | . . . . . . . Level 4 . | . . . . . . . Level 5 . | . . . . . . . High Security . | . . . . . . . Max Security . | . . . . . . . Squads Dispatched 4 | . . . . . 2 2 Investigation 1 | . . . . . 1 . Extermination . | . . . . . . . Reinforcement 2 | . . . . . 1 1 Assault . | . . . . . . . Garrison 1 | . . . . . . 1 Intercept . | . . . . . . . Searches Triggered . | . . . . . . . Construction Impeded . | . . . . . . . Haulers Reinforced . | . . . . . . . Active Scanning Responses . | . . . . . . . Cargo Convoy Interrupts . | . . . . . . . Stealth | -11 -10 -10 -10 -9 -8 -8 --------- Run | Yrd Mat Min Exi Min Mat Sto Distress Signals 4 | . . . . . . 4 Communications Jammed . | . . . . . . . Distress Signals . | . . . . . . . Times Spotted 82 | . 11 15 . 1 39 16 Peak Tracking Total 5 | . 5 5 . 1 4 3 Tactical Retreats 8 | . 2 1 . . 5 . Traps | -11 -10 -10 -10 -9 -8 -8 ------- Run | Yrd Mat Min Exi Min Mat Sto Traps Triggered 3 | . 1 . . 1 . 1 Indirectly . | . . . . . . . Trap Hack Attempts . | . . . . . . . Triggered . | . . . . . . . Disarmed . | . . . . . . . Reprogrammed . | . . . . . . . Reused . | . . . . . . . Traps Extracted . | . . . . . . . Installed . | . . . . . . . Triggered . | . . . . . . . Machines | -11 -10 -10 -10 -9 -8 -8 ---------- Run | Yrd Mat Min Exi Min Mat Sto Machines Disabled 3 | . . . . . 2 1 Max in Single Turn 1 | . . . . . 1 1 Garrison Access 1 | . . . . . . 1 Machines Repaired . | . . . . . . . Machines Dismantled . | . . . . . . . Machines Sabotaged . | . . . . . . . Overloaded Fab Kills . | . . . . . . . Hacking | -11 -10 -10 -10 -9 -8 -8 --------- Run | Yrd Mat Min Exi Min Mat Sto Machines Accessed 17 | . 1 . . 1 8 7 Terminals 12 | . . . . . 6 6 Fabricators . | . . . . . . . Repair Stations 1 | . . . . . 1 . Recycling Units 1 | . 1 . . . . . Scanalyzers 1 | . . . . . 1 . Garrison Access 1 | . . . . . . 1 Total Hacks 42 | . 3 . . 1 22 16 Successful 18 | . 2 . . 1 11 4 Failed 24 | . 1 . . . 11 12 Catastrophic 8 | . 1 . . . 3 4 Database Lockouts . | . . . . . . . Manual 9 | . . . 1 . 3 5 Terminals 28 | . . . . . 14 14 Fabricators . | . . . . . . . Repair Stations 3 | . . . . . 3 . Recycling Units 3 | . 3 . . . . . Scanalyzers 5 | . . . . . 5 . Garrison Access 2 | . . . . . . 2 Terminal Hacks 12 | . . . . 1 8 3 Record 1 | . . . . . 1 . Prototype ID Bank 3 | . . . . . 2 1 Open Door 2 | . . . . 1 . 1 Level Access Points 1 | . . . . . 1 . Alert Level 2 | . . . . . 1 1 Locate Traps 1 | . . . . . 1 . Dispatch Records 1 | . . . . . 1 . Zone Layout 1 | . . . . . 1 . Fabricator Hacks . | . . . . . . . Repair Station Hacks 1 | . . . . . 1 . Scan Component 1 | . . . . . 1 . Recycling Unit Hacks 2 | . 2 . . . . . Report Inventory 1 | . 1 . . . . . Retrieve Components 1 | . 1 . . . . . Scanalyzer 2 | . . . . . 2 . Insert Component 1 | . . . . . 1 . Analyze 1 | . . . . . 1 . Garrison Access Hacks 1 | . . . . . . 1 Seal Access 1 | . . . . . . 1 Unauthorized Hacks . | . . . . . . . Terminals . | . . . . . . . Fabricators . | . . . . . . . Repair Stations . | . . . . . . . Recycling Units . | . . . . . . . Scanalyzers . | . . . . . . . Garrison Access . | . . . . . . . Data Cores Recovered 1 | . . . . . 1 . Used . | . . . . . . . Hacking Detections 14 | . 1 . . . 8 5 Full Trace Events 3 | . 1 . . . 2 . Feedback Events . | . . . . . . . Feedback Blocked . | . . . . . . . Robot Schematics Acquired . | . . . . . . . Robots Built . | . . . . . . . Authchips . | . . . . . . . Time . | . . . . . . . Total Robot Build Rating . | . . . . . . . Part Schematics Acquired 1 | . . . . . 1 . Parts Built . | . . . . . . . Authchips . | . . . . . . . Time . | . . . . . . . Total Part Build Rating . | . . . . . . . Parts Repaired . | . . . . . . . Time . | . . . . . . . Parts Recycled . | . . . . . . . Recycled Matter . | . . . . . . . Retrieved Matter . | . . . . . . . Retrieved Components 3 | . 3 . . . . . Parts Scanalyzed 1 | . . . . . 1 . Part Schematics Acquired 1 | . . . . . 1 . Parts Damaged . | . . . . . . . Bothacking | -11 -10 -10 -10 -9 -8 -8 ------------ Run | Yrd Mat Min Exi Min Mat Sto Used RIF Installer . | . . . . . . . Robots Hacked . | . . . . . . . Non-combat . | . . . . . . . Combat . | . . . . . . . Robot Hacks Applied . | . . . . . . . Relay Couplers Released . | . . . . . . . Fabnet Peak Effective % . | . . . . . . . Robots Rewired . | . . . . . . . Allies Hacked . | . . . . . . . Hacks Repelled . | . . . . . . . Allies | -11 -10 -10 -10 -9 -8 -8 -------- Run | Yrd Mat Min Exi Min Mat Sto Total Allies . | . . . . . . . Largest Group . | . . . . . . . Highest-Rated Group . | . . . . . . . Highest-Rated Ally . | . . . . . . . Total Orders 4 | . . . . . . 4 EXPLORE 4 | . . . . . . 4 Ally Attacks . | . . . . . . . Total Damage . | . . . . . . . Kills . | . . . . . . . Allies Corrupted 2 | . . . . . . 2 Allies Melted . | . . . . . . . Intel | -11 -10 -10 -10 -9 -8 -8 ------- Run | Yrd Mat Min Exi Min Mat Sto Robot Analysis Total . | . . . . . . . Derelict Logs Recovered 2 | . . 1 . 1 . . Drone Launches 6 | . . . . . . 6 Drone Recoveries 4 | . . . . . . 4 Exploration | -11 -10 -10 -10 -9 -8 -8 ------------- Run | Yrd Mat Min Exi Min Mat Sto Turns Passed 8206 | 115 590 1438 816 672 3304 1271 Spaces Moved 4504 | 89 335 773 430 298 1946 633 Core 15 | 10 . 5 . . . . Treads . | . . . . . . . Legs 3359 | 79 335 768 430 298 1449 . Wheels 1130 | . . . . . 497 633 Hover . | . . . . . . . Flight . | . . . . . . . Fastest Speed 50 | 50 120 120 120 120 100 100 Average Speed 139 | 113 140 156 189 187 123 114 Slowest Speed 330 | 120 190 300 190 190 330 115 Overloaded Moves . | . . . . . . . Propulsion Burnouts . | . . . . . . . Robots Hopped 3 | . . . . . 3 . Cave-ins Triggered 1 | . . . . . 1 . Exploration Rate (%) 45 | 6 27 91 63 34 46 48 Regions Visited 6 Branch Regions 4 Pre-discovered Areas . | . . . . . . . Known Exits Taken 5 | . 1 1 1 1 1 . Unknown Exits Taken 1 | 1 . . . . . . Scrap Searched 2 | . . 1 . 1 . . Spaces Dug 12 | . . . . . 12 . Terrain Destroyed 32 | . . . . 8 21 3 Melee . | . . . . . . . Projectile 25 | . . . . 8 17 . AOE 7 | . . . . . 4 3 Terrain Rammed . | . . . . . . . Walls Destroyed . | . . . . . . . Machines Disabled . | . . . . . . . Actions | -11 -10 -10 -10 -9 -8 -8 --------- Run | Yrd Mat Min Exi Min Mat Sto Total 5993 | 100 403 895 433 401 2668 1093 Wait 992 | . 3 35 . 64 507 383 Move 4491 | 88 334 772 429 297 1938 633 Hop 3 | . . . . . 3 . Pick Up 58 | 5 10 6 . 8 25 4 Fast Attach 35 | 6 5 4 1 3 9 7 Attach 42 | . 1 7 1 1 25 7 Detach 25 | . 4 3 . 1 11 6 Swap 15 | . 1 3 . 3 5 3 Drop 45 | 1 10 4 2 8 17 3 Fire 265 | . 34 56 . 15 125 35 Melee 12 | . . . . . . 12 Ram 1 | . . 1 . . . . Kick 7 | . 1 4 . . 2 . Crush . | . . . . . . . Escape Stasis 1 | . . . . . 1 . Rewire 1 | . . . . 1 . . Trap . | . . . . . . . Miscellaneous . | . . . . . . . Route ------- -11/Scrapyard -10/Materials -10/Mines (discovered 3 exits: [*Mat x2] / *Exi) -10/Exiles (discovered 2 exits: *Min x2) -9/Mines -8/Materials (discovered 4 exits: Fac x3 / *Sto) -8/Storage History --------- Turn | Location | Event 11 | -11/Scrapyard | Discovered new exit (range 15) 116 | -11/Scrapyard | Entered Materials 333 | -10/Materials | Build established: Mutant 558 | -10/Materials | Destroyed 7 combat bots 608 | -10/Materials | Discovered new exit (range 16) 694 | -10/Materials | Identified exit to Mines 706 | -10/Materials | Entered Mines 818 | -10/Mines | Found a damaged Exp. Sensor Array with a note attached 820 | -10/Mines | Found Prototype Device 1337 | -10/Mines | Lost 3 parts (1n2w) 1450 | -10/Mines | Assembled infested the area 1508 | -10/Mines | Met 8R-AWN 1626 | -10/Mines | Received a Rocket Launcher from a helpful Derelict 1653 | -10/Mines | Build established: Scavenger-Mutant 1719 | -10/Mines | Learned Materials garrison access intel 1857 | -10/Mines | Discovered new exit (range 8) 2094 | -10/Mines | Discovered new exit (range 14) 2132 | -10/Mines | Discovered new exit (range 5) 2140 | -10/Mines | Identified exit to Exiles 2144 | -10/Mines | Entered Exiles 2220 | -10/Exiles | Welcomed by 8R-AWN 2251 | -10/Exiles | Met EX-HEX 2333 | -10/Exiles | Met EX-BIN 2369 | -10/Exiles | Aligned with FarCom system 2371 | -10/Exiles | Given EX-Vault access code 2428 | -10/Exiles | Opened EX-Vault 2435 | -10/Exiles | Found Prototype Energy Cannon 2435 | -10/Exiles | Identified Gui. Plasma Cannon 2474 | -10/Exiles | Warned to stay clear of 0b10 Research branches 2539 | -10/Exiles | Met EX-DEC 2640 | -10/Exiles | Discovered new exit (range 12) 2873 | -10/Exiles | Learned about 8R-AWN's background 2922 | -10/Exiles | Discovered new exit (range 15) 2958 | -10/Exiles | Identified exit to Mines 2960 | -10/Exiles | Left Exiles lab with Gui. Plasma Cannon 2960 | -10/Exiles | Entered Mines 3222 | -9/Mines | Learned location of 1 exit from Materials 3398 | -9/Mines | Discovered new exit (range 7) 3453 | -9/Mines | Met a Derelict who couldn't figure out how to use a Trap Extractor 3464 | -9/Mines | Core integrity fell below 50% 3558 | -9/Mines | Identified Exp. Sensor Array 3629 | -9/Mines | Identified exit to Materials 3632 | -9/Mines | Entered Materials 3632 | -8/Materials | Evolved 4 slots: Propulsion x1, Utility x2, Weapon x1 3633 | -8/Materials | Identified exit to Factory 3634 | -8/Materials | Loaded intel: 1 garrison access location 4306 | -8/Materials | Build established: Skirmisher 5163 | -8/Materials | Crushed by falling debris 5516 | -8/Materials | Discovered exit to Factory (range 13) 5676 | -8/Materials | Build established: Mutant 6143 | -8/Materials | Lost 4 parts (3n1u) 6492 | -8/Materials | Core integrity fell below 50% 6538 | -8/Materials | Lost 7 parts (1p2u4w) 6803 | -8/Materials | Discovered new exit (range 15) 6929 | -8/Materials | Identified exit to Storage 6936 | -8/Materials | Entered Storage 7127 | -8/Storage | Lost 4 parts (1p2u1w) 7152 | -8/Storage | Core integrity fell below 20% 7173 | -8/Storage | Garrison activated, responded to threat 8083 | -8/Storage | Build established: Skirmisher 8207 | -8/Storage | Destroyed by G-47 Trooper with Particle Gun Last Messages --------------- 08002_ A-02 Transporter destroyed. 08012_ Acquired 53 matter. 08015_ Acquired Trap Extractor. 08017_ Acquired Ion Engine. 08030_ Y-45 Defender destroyed. 08040_ Acquired 58 matter. 08064_ System corrupted: Heat flow error (+140). 08092_ Drone released from Drone Bay. 08093_ Acquired Machine Analyzer. 08098_ K-01 Serf collects debris. 08105_ YFCHQM&GOX0E:KPCUTMQ73KQ1NJVEY 9XY 08119_ Drone triggered Shock Trap. 08119_ The floor emits a surge of raw power. 08120_ Drone system terminally corrupted. 08127_ System corrupted: Heat flow error (+262). 08168_ Dropped Drone Bay. 08171_ Drone released from Drone Bay. 08180_ R-06 Scavenger collects Drone Bay. 08187_ Drone retrieved by Drone Bay. 08194_ System corrupted: Matter fused (-7). Map ----- +----------------------------------------------------+ | | | | | | | | | | | ????????????????????????????????????????????????? | | ????????????????????????????????????????????????? | | ????????????????????????????????????????????????? | | ????############????????????????????????????????? | | ????# #????????????????????????????????? | | ????# #????????????????????????????????? | | ????# ##########???????????????????????? | | ?########### # ^ |#???????????????????????? | | ?# # # """"" #???????????????????????? | | ?# ! [ " "[# # """"" #???????????????????????# | | ## ![[ "" =# % #^ "" #???????????????????????? | | # ! = """%# %# ^^ #???????????????????????? | | ## % """%+% +% """^ #???????????????????????# | | ?# """!# # "" #??????????##########???# | | ?# # %# "" #??????????# #???# | | ?# # # #??????????# """" #???# | | ?########### ############????????# !"" #??## | | ???????????# #??????#! !#????????# "/ """ #??#" | | ???????????# #??????#! !#????????# "" !" #??#T | | ???????????# #??????#! !#????????# ""!%" #??#" | | ?########### % #??????# @ ######???# """" #??## | | ?# # #??????## ###"""#???# #???# | | ??# """ # #??????# T#"G"#???# #???# | | ??# """ # w########g####" "#########+##+##### | | ??# """ # | | ??# + !! | | ??# """ # g !! | | ??# """ # ################################## | | ??# """ # #????????????????????????????????# | | ??# # #????????????????????????????????# | | ??#####T#### %#????????????????????????????????# | | ??????###??# #????????????????????????????????# | | ???????????# #????????????????????????????????# | | ???????????# #????????????????????????????????# | | ???????????# #????????????????????????????????# | | ???????????# #????????????????????????????????# | | ???????????# #????????????????????????????????# | | ??????????? ????????????????????????????????# | | ??????????# ???????????????????????####+##### | | ??????????+ ?????????????????????# | | ??????????# ?????????????????????# | | ??????????# ?????????????????????# | | ??????????###+##?????????????????????############ | | ????????????????????????????????????????????????? | | ????????????????????????????????????????????????? | +----------------------------------------------------+ Best States ------------- Heat Dissipation 51 Energy Generation 16 Energy Capacity 290 Matter Stores 300 Matter Capacity 300 Sight Range 16 Robot Scan Range 20 Terrain Scan Density 10 Base Temperature (-) 100 Armor Coverage 150 Evasion (%) 55 Particle Charging 15 Trap Extractor Capacity 4 Item Schematics ----------------- Exp. Sensor Array | -8/Materials | Scanalyzed Robot Schematics ------------------ None Fabricated ------------ Nothing Alien Tech Used ----------------- None Achievements -------------- Backstab Challenges ------------ None Game ------ Seed WardroneGatlingDatajack Manual? 0 Play Time 01:35:26 Cumulative 15.6 hours Start 2024.10.12 @ 04:58:05 End 2024.10.15 @ 21:26:15 Sessions 3 Manual Loads 0 Difficulty Rogue Special Mode None Game No. 18 Rogue 18 Adventurer 0 Explorer 0 Win Type - Total 0 Types 0/0/0/0/0/0/0/0/0 Lore% 6 Gallery% 13 Achievement% 13 Wizard Run 0 Options --------- Layout 0 ASCII 0 Keyboard 1 Movement Arrows Keybinds 0 Fullscreen 1 Font 24/Smallcaps Map View 76x50 Zoom Use 0% Tactical HUD 1 Map Filters NONE Filters NONE Steam 1 RUN: 95f80be3-7fac-42b3-80ba-50cd5e621bfa